bitfinex/quotes_ETHUSD_20240709
["timestamp","ask_amount","ask_price","bid_price","bid_amount"]
[1720512091240,0.93452737,3072.8,3072.0,1.0570043]
[1720512091436,0.34080321,3073.1,3072.1,0.86314204]
[1720512091681,0.34080321,3073.1,3072.5,5.67431]
[1720512091866,0.34080321,3073.1,3072.6,2.33208069]
[1720512092180,7.36,3073.6,3072.7,3.80445]
[1720512092335,0.93476392,3073.5,3072.8,0.0650772]
[1720512092677,7.36,3073.6,3072.9,0.93695272]
[1720512092877,7.36,3073.6,3072.9,1.00202992]
[1720512093047,1.69558167,3074.0,3072.9,1.00202992]
[1720512093256,2.06228995,3073.9,3072.9,4.25621992]
[1720512093456,0.93488769,3073.8,3073.0,0.42562199]
[1720512093641,0.93477863,3073.7,3073.1,0.55]
[1720512093842,2.03678813,3074.0,3073.1,0.55]
[1720512094199,2.03678813,3074.0,3073.0,0.55]
[1720512094200,2.06224449,3073.9,3073.0,0.55]
[1720512094356,1.6960727,3073.7,3072.7,0.55]
[1720512094543,1.6960727,3073.5,3072.5,2.4197]
[1720512094743,2.06224449,3073.4,3072.5,2.4197]
[1720512095084,2.06224449,3073.3,3072.5,2.4197]
[1720512095282,0.34349015,3073.5,3072.5,2.4197]
[1720512095283,2.06224449,3073.2,3072.5,2.4197]
[1720512095481,1.12742204,3073.2,3072.5,2.4197]
[1720512095782,3.0,3073.5,3072.5,2.4197]
[1720512095981,2.06212683,3073.4,3072.5,2.4197]
[1720512096284,0.34074575,3073.6,3072.6,2.33208018]
[1720512096456,1.12737843,3073.5,3072.8,3.2543]
[1720512096783,7.36,3073.8,3072.7,1.02517802]
[1720512096784,7.36,3073.8,3072.9,3.86931292]
[1720512096991,1.6960727,3074.2,3073.0,5.70223]
[1720512097173,2.06144044,3074.1,3073.1,0.89494513]
[1720512097380,1.69487275,3074.2,3073.2,0.55]
[1720512097381,2.06144044,3074.0,3073.2,0.55]
[1720512097631,2.03558901,3074.2,3073.2,0.55]
[1720512097632,2.06144044,3073.9,3073.2,0.55]
[1720512097813,2.06144044,3073.8,3073.1,0.55]
[1720512098126,2.06144044,3073.7,3073.1,0.55]
[1720512098316,2.06170713,3073.6,3073.1,0.55]
[1720512098525,2.06185838,3073.5,3073.1,0.55]
[1720512098815,9.05487275,3074.0,3073.1,0.55]
[1720512099017,2.06205711,3073.9,3073.1,0.55]
[1720512099229,2.06205711,3073.8,3073.1,0.55]
[1720512099387,3.0,3073.9,3073.2,0.625224]
[1720512099588,2.06200058,3073.8,3073.3,0.55]
[1720512099786,3.0,3073.9,3073.3,0.55]
[1720512100046,2.06199839,3073.8,3073.3,0.55]
[1720512100326,3.0,3073.9,3073.3,0.55]
[1720512100327,4.69581004,3073.9,3073.3,0.55]
[1720512100508,4.69581004,3073.9,3072.6,4.7197]
[1720512100509,3.09802485,3073.8,3072.6,4.7197]
[1720512100710,3.0,3073.7,3072.6,4.7197]
[1720512101022,3.75755572,3073.6,3072.6,2.4527]
[1720512101338,5.06195357,3073.5,3072.6,2.4527]
[1720512101488,2.06204347,3073.4,3072.6,2.4527]
[1720512101687,2.06204347,3073.3,3072.6,2.4527]
[1720512101908,3.4036,3073.6,3072.7,0.55]
[1720512102095,5.57197288,3073.5,3072.7,0.55]
[1720512102304,2.06205267,3073.4,3072.7,0.55]
[1720512102518,2.06205267,3073.3,3072.7,0.55]
[1720512102737,2.06205267,3073.2,3072.7,0.55]
[1720512103037,2.06205267,3073.1,3072.7,0.55]
[1720512103241,0.93475544,3073.0,3072.7,0.55]
[1720512103449,0.35099202,3073.3,3072.7,0.55]
[1720512103599,2.2670503,3073.2,3072.7,0.55]
[1720512103938,2.06239088,3073.1,3072.7,0.55]
[1720512104112,0.20465942,3073.2,3072.7,0.55]
[1720512104113,2.06239088,3073.0,3072.7,0.55]
[1720512104313,2.06239088,3072.9,3072.7,0.55]
[1720512104543,0.20465942,3073.2,3072.7,0.55]
[1720512104716,2.06248689,3073.1,3072.7,0.55]
[1720512104915,2.06248689,3073.0,3072.7,0.55]
[1720512105133,2.06248689,3072.9,3072.7,0.55]
[1720512105308,3.20465942,3073.2,3072.7,0.55]
[1720512105504,2.38314315,3073.1,3072.2,2.338]
[1720512105803,2.06267721,3073.0,3072.2,2.338]
[1720512106121,3.0,3073.1,3072.2,5.59297]
[1720512106301,4.69670632,3073.5,3072.2,5.59293]
[1720512106505,2.06258493,3073.4,3072.4,2.4501]
[1720512106745,3.0,3073.4,3072.6,2.267]
[1720512106908,2.06256759,3073.3,3072.7,0.55]
[1720512107108,3.0,3073.5,3072.7,0.55]
[1720512107322,2.06253052,3073.4,3072.7,0.55]
[1720512107546,2.06253052,3073.3,3072.7,0.55]
[1720512107745,2.06253052,3073.2,3072.7,0.55]
[1720512108044,3.0,3073.5,3072.7,0.55]
[1720512108205,1.12744733,3073.4,3072.8,0.06508026]
[1720512108406,7.36,3073.6,3072.8,0.06508026]
[1720512108407,7.36,3073.6,3072.9,2.8799]
[1720512108619,1.69676069,3074.0,3073.0,0.61993303]
[1720512108846,2.06237973,3073.9,3073.1,0.55]
[1720512109149,2.06237973,3073.8,3073.1,0.55]
[1720512109314,2.06237973,3073.7,3073.1,0.55]
[1720512109517,2.06237973,3073.6,3073.0,0.55]
[1720512109849,2.80867473,3073.9,3073.0,0.55]
[1720512110004,1.21561989,3073.8,3073.0,0.55]
[1720512110225,3.75865809,3073.7,3073.0,0.55]
[1720512110449,1.12748104,3073.6,3073.0,0.55]
[1720512110629,2.0622335,3073.5,3073.0,0.55]
[1720512110828,4.69658333,3073.8,3073.0,0.55]
[1720512111025,2.06223587,3073.7,3073.0,0.55]
[1720512111322,2.06223587,3073.6,3073.0,0.55]
[1720512111631,2.06223587,3073.5,3073.0,0.55]
[1720512111957,0.93482353,3073.4,3073.0,0.55]
[1720512112172,4.69658333,3073.8,3073.0,0.55]
[1720512112460,0.34080469,3073.3,3073.0,0.55]
[1720512112617,0.34080469,3073.3,3073.0,0.83799]
[1720512112821,0.34080469,3073.3,3073.0,0.55]
[1720512113264,0.93478971,3073.2,3073.0,0.55]
[1720512113424,0.34080469,3073.3,3073.0,0.55]
[1720512115454,0.34080469,3073.3,3073.0,3.80414]
[1720512117432,0.34080469,3073.3,3073.1,2.267]
[1720512117667,0.34080469,3073.3,3073.2,1.157108]
[1720512120255,0.34080469,3073.3,3073.2,7.664968]
[1720512120661,0.34080469,3073.3,3073.2,10.039468]
[1720512124386,0.34080469,3073.3,3073.2,6.785538]
[1720512124751,0.34080469,3073.3,3073.2,8.485538]
[1720512125250,0.34080469,3073.3,3073.2,4.681608]
[1720512125447,0.34080469,3073.3,3073.2,4.0745]
[1720512126084,0.34080469,3073.3,3073.2,2.3745]
[1720512126588,0.34080469,3073.3,3073.0,1.7]
[1720512126953,0.34080469,3073.3,3073.1,0.55]
[1720512128150,1.12743989,3073.2,3073.1,0.55]
[1720512128584,0.34080469,3073.3,3072.8,0.55]
[1720512128788,1.12742958,3073.2,3072.8,1.425897]
[1720512128994,0.34080469,3073.3,3072.8,1.425897]
[1720512129160,1.12743419,3073.2,3072.8,1.425897]
[1720512129358,0.34080469,3073.3,3072.8,1.425897]
[1720512129582,1.1274149,3073.2,3072.8,1.425897]
[1720512129781,0.34080469,3073.3,3072.8,1.425897]
[1720512130001,1.12745479,3073.2,3072.8,1.425897]
[1720512130292,0.34080469,3073.3,3072.8,1.425897]
[1720512130453,1.12745494,3073.2,3072.8,1.425897]
[1720512130657,0.34080469,3073.3,3072.8,1.425897]
[1720512130905,1.12745562,3073.2,3072.8,1.425897]
[1720512131051,0.34080469,3073.3,3073.1,1.7]
[1720512131263,0.34080469,3073.3,3073.2,0.55]
[1720512131663,1.46821718,3073.3,3073.2,0.55]
[1720512131859,1.4682222,3073.3,3073.2,0.55]
[1720512132054,2.40344141,3073.3,3073.2,0.55]
[1720512132795,2.40344141,3073.3,3072.2,1.7]
[1720512132796,2.3182,3073.2,3072.2,1.7]
[1720512132993,2.06263672,3073.1,3072.2,1.7]
[1720512133153,2.06263672,3073.0,3072.2,1.7]
[1720512133355,2.06263672,3072.9,3072.2,1.7]
[1720512133593,2.06263672,3072.8,3072.2,1.7]
[1720512133781,2.06263672,3072.7,3072.2,1.7]
[1720512133985,0.34075648,3072.8,3072.3,0.55]
[1720512134157,0.93578756,3072.7,3072.6,1.7]
[1720512134354,0.34075648,3072.8,3072.6,4.83880864]
[1720512134560,0.34075648,3072.8,3072.7,0.55]
[1720512134798,0.34075648,3072.8,3072.7,0.61507743]
[1720512135003,0.34075648,3072.8,3072.7,0.55]
[1720512137889,1.27668661,3072.8,3072.7,0.55]
[1720512138256,1.27659789,3072.8,3072.7,0.55]
[1720512138464,2.40420347,3072.8,3072.7,0.55]
[1720512138661,1.27656796,3072.8,3072.7,0.55]
[1720512138967,2.40417949,3072.8,3072.7,0.55]
[1720512139385,2.40416924,3072.8,3072.7,0.55]
[1720512139600,2.40416924,3072.8,3072.6,1.7]
[1720512139889,2.40416924,3072.8,3072.2,1.7]
[1720512139890,2.06341276,3072.7,3072.2,1.7]
[1720512140070,2.06341276,3072.6,3072.2,1.7]
[1720512140271,2.06341276,3072.5,3072.2,1.7]
[1720512140461,0.93581148,3072.4,3072.2,1.7]
[1720512140661,2.04305755,3072.8,3072.2,1.7]
[1720512140894,3.76568204,3072.7,3072.2,1.7]
[1720512141202,3.76568204,3072.6,3072.3,0.55]
[1720512141378,0.34075648,3072.8,3072.3,0.55]
[1720512141579,3.76435042,3072.7,3072.3,0.55]
[1720512141773,2.06327928,3072.6,3072.3,0.55]
[1720512141977,2.06327928,3072.5,3072.3,0.55]
[1720512142180,2.06326807,3072.4,3072.3,0.55]
[1720512142405,0.93553624,3072.4,3072.3,0.55]
[1720512142602,1.70107114,3072.7,3072.3,0.55]
[1720512142603,0.93553624,3072.6,3072.3,0.55]
[1720512142793,2.06327827,3072.5,3072.3,0.55]
[1720512142971,0.93553624,3072.4,3072.3,0.55]
[1720512143303,0.93553624,3072.6,3072.3,0.55]
[1720512143461,1.12774892,3072.5,3072.3,0.55]
[1720512143662,0.93553624,3072.4,3072.3,0.55]
[1720512143904,0.93553624,3072.6,3072.3,0.55]
[1720512144094,1.1277458,3072.5,3072.3,0.55]
[1720512144404,0.93553624,3072.4,3072.3,0.55]
[1720512144580,0.93553624,3072.6,3072.3,0.55]
[1720512144770,0.34075648,3072.8,3072.3,0.55]
[1720512144771,0.93605472,3072.5,3072.3,0.55]
[1720512144971,2.04194975,3072.8,3072.3,0.55]
[1720512144972,0.93605472,3072.4,3072.3,0.55]
[1720512145305,0.93623218,3072.6,3072.3,0.55]
[1720512146392,0.93623218,3072.5,3072.3,0.55]
[1720512146587,3.34075648,3072.8,3072.3,0.55]
[1720512146789,2.06397185,3072.7,3072.3,0.55]
[1720512146983,0.93628082,3072.6,3072.3,0.55]
[1720512147185,0.93628082,3072.5,3072.3,0.55]
[1720512147506,3.34075648,3072.8,3072.3,0.55]
[1720512147802,5.06396839,3072.7,3072.3,0.55]
[1720512147970,0.34075648,3072.8,3072.3,0.55]
[1720512148172,2.06391493,3072.7,3072.3,0.55]
[1720512148373,0.34075648,3072.8,3072.3,0.55]
[1720512148374,3.34075648,3072.8,3072.3,0.55]
[1720512148569,2.06383794,3072.7,3072.3,0.55]
[1720512148774,0.93614711,3072.6,3072.3,0.55]
[1720512148994,0.93614711,3072.5,3072.3,0.55]
[1720512149299,3.34075648,3072.8,3072.3,0.55]
[1720512149482,2.0637548,3072.7,3072.3,0.55]
[1720512149681,0.93605172,3072.6,3072.3,0.55]
[1720512149881,0.93605172,3072.5,3072.3,0.55]
[1720512150084,3.34075648,3072.8,3072.3,0.55]
[1720512150385,2.06378391,3072.7,3072.3,0.55]
[1720512150586,0.93608066,3072.6,3072.3,0.55]
[1720512150797,0.93608066,3072.5,3072.3,0.55]
[1720512151002,3.34075648,3072.8,3072.3,0.55]
[1720512151215,5.06389885,3072.7,3072.3,0.55]
[1720512151506,0.34075648,3072.8,3072.3,0.55]
[1720512151507,0.93621924,3072.6,3072.3,0.55]
[1720512151678,0.34075648,3072.8,3072.3,4.09488094]
[1720512151885,1.70065755,3073.5,3072.7,1.7]
[1720512152192,1.70065755,3073.9,3072.9,3.25424]
[1720512152380,3.76441258,3073.8,3073.0,2.72303124]
[1720512152583,2.06375503,3073.7,3073.1,0.55]
[1720512152873,2.06375503,3073.6,3073.1,2.25]
[1720512153073,2.06375503,3073.5,3073.1,2.25]
[1720512153272,0.93644825,3073.4,3073.1,2.94312072]
[1720512153502,1.70065755,3073.8,3073.1,2.94312072]
[1720512153702,2.0637983,3073.7,3073.1,2.94312072]
[1720512153895,2.0637983,3073.6,3073.1,2.94312072]
[1720512154116,2.0637983,3073.5,3073.1,2.94312072]
[1720512154414,0.34071642,3073.9,3073.2,0.52792207]
[1720512154593,3.76634677,3073.8,3073.3,0.55]
[1720512154795,2.06431976,3073.7,3073.3,0.55]
[1720512155007,2.06431976,3073.6,3073.3,0.55]
[1720512155314,2.06431976,3073.5,3073.3,0.55]
[1720512155521,2.04274343,3073.9,3073.3,0.82779221]
[1720512155732,2.06404593,3073.8,3073.5,1.7]
[1720512156031,0.34071642,3073.9,3073.6,3.80343]
[1720512156199,0.34071642,3073.9,3073.7,2.8534963]
[1720512156402,0.34071642,3073.9,3073.8,0.61505858]
[1720512157440,0.34071642,3073.9,3073.8,0.55]
[1720512157795,0.34071642,3073.9,3073.6,0.55]
[1720512162040,0.9370585,3073.8,3073.1,1.7]
[1720512162246,0.9370585,3073.8,3073.2,0.55]
[1720512162247,2.06437635,3073.8,3073.2,0.55]
[1720512162422,2.06437635,3073.7,3073.2,0.55]
[1720512162630,0.60561806,3073.9,3073.2,0.55]
[1720512162821,2.06438851,3073.8,3073.2,0.55]
[1720512163131,2.06438851,3073.7,3073.2,0.55]
[1720512163334,0.93704405,3073.6,3073.2,0.55]
[1720512163545,2.30635831,3073.9,3073.2,0.55]
[1720512163842,2.06434034,3073.8,3073.2,0.55]
[1720512164046,0.93696828,3073.7,3073.2,0.55]
[1720512164206,1.12738916,3073.6,3073.2,0.55]
[1720512164409,3.0,3073.8,3073.2,0.55]
[1720512164608,2.06435485,3073.7,3073.2,0.55]
[1720512164851,2.06435485,3073.6,3073.2,0.55]
[1720512165045,0.93698069,3073.5,3073.2,0.55]
[1720512165276,2.2308067,3073.8,3073.2,0.55]
[1720512165545,5.2308067,3073.8,3073.2,0.55]
[1720512165847,2.0643869,3073.7,3073.2,0.55]
[1720512166037,2.0643869,3073.6,3073.2,0.55]
[1720512166246,0.93697242,3073.5,3073.2,0.55]
[1720512166434,5.23095416,3073.8,3073.2,0.55]
[1720512166641,2.06437216,3073.7,3073.2,0.55]
[1720512166822,1.70037009,3074.3,3073.5,1.7]
[1720512167030,2.06428093,3074.2,3073.6,0.55]
[1720512167236,0.9370535,3074.1,3073.6,0.84006255]
[1720512167453,0.34066693,3074.5,3073.6,0.775]
[1720512167615,2.06429181,3074.4,3073.6,0.55]
[1720512167830,0.34066693,3074.5,3073.6,0.55]
[1720512168043,3.76507338,3074.4,3073.6,0.55]
[1720512168359,2.06428541,3074.3,3073.6,0.55]
[1720512168512,2.06428541,3074.2,3073.6,0.55]
[1720512168713,2.06426256,3074.1,3073.6,0.55]
[1720512168913,2.06426256,3074.0,3073.1,1.7]
[1720512169135,0.93703058,3073.9,3073.2,0.72]
[1720512169353,0.93703058,3073.8,3073.2,0.72]
[1720512169524,4.70078797,3074.3,3073.5,1.7]
[1720512169726,5.064741,3074.2,3073.5,1.7]
[1720512170057,2.06472452,3074.1,3073.6,0.55]
[1720512170215,0.93753683,3074.0,3073.6,0.55]
[1720512170953,3.0,3074.1,3073.6,0.55]
[1720512171153,0.93802153,3074.0,3073.6,0.55]
[1720512171449,0.93802153,3073.9,3073.6,0.55]
[1720512171635,3.0,3074.1,3073.6,0.55]
[1720512171946,2.06543507,3074.0,3073.6,0.55]
[1720512172121,0.93820457,3073.9,3073.6,0.55]
[1720512172448,0.93813836,3073.8,3073.6,0.55]
[1720512172657,1.70078797,3074.1,3073.1,1.7]
[1720512172862,2.06505957,3074.0,3073.2,0.72]
[1720512173172,2.06505957,3073.9,3073.2,0.72]
[1720512173336,0.93775509,3073.8,3073.2,0.72]
[1720512173540,4.70078797,3074.2,3073.3,0.242]
[1720512173732,2.06464354,3074.1,3073.4,0.55]
[1720512173927,0.93735739,3074.0,3073.4,0.55]
[1720512174132,0.93735739,3073.9,3073.4,0.55]
[1720512174369,4.70117433,3074.2,3073.4,0.55]
[1720512174570,2.06460291,3074.1,3073.4,0.55]
[1720512174735,2.06460291,3074.0,3073.5,1.7]
[1720512174935,2.06460291,3073.9,3073.5,1.7]
[1720512175130,3.0,3074.1,3073.5,1.7]
[1720512175334,2.06463182,3074.0,3073.5,1.7]
[1720512175573,2.06463182,3073.9,3073.5,1.7]
[1720512175777,3.0,3074.1,3073.5,1.7]
[1720512176072,2.06464175,3074.0,3073.6,0.55]
[1720512176253,3.0,3074.2,3073.6,2.936]
[1720512176428,1.12711818,3074.1,3073.6,3.74985196]
[1720512176627,9.40184126,3074.5,3073.6,7.06840346]
[1720512176831,2.06477349,3074.4,3073.9,1.7]
[1720512177045,1.12713009,3074.3,3073.9,1.7]
[1720512177250,0.34066693,3074.5,3073.9,1.7]
[1720512177461,2.06476318,3074.4,3073.9,1.7]
[1720512177665,0.34066693,3074.5,3073.9,1.87]
[1720512177891,1.12706739,3074.4,3074.0,3.80308]
[1720512178192,2.04198642,3075.0,3074.0,3.80308]
[1720512178394,2.06482838,3074.9,3074.1,0.892619]
[1720512178688,2.06482838,3074.8,3074.2,0.55]
[1720512178847,2.04198642,3075.0,3074.2,0.55]
[1720512178848,1.12701699,3074.7,3074.2,0.55]
[1720512179051,1.12701699,3074.6,3074.2,0.55]
[1720512179253,0.34063722,3075.0,3074.3,1.7]
[1720512179453,1.1269061,3074.9,3074.4,0.55]
[1720512179675,1.1269061,3074.8,3074.4,0.55]
[1720512179993,2.04161904,3075.6,3074.4,0.55]
[1720512179994,1.7013492,3075.5,3074.7,1.7]
[1720512180289,2.2692,3075.9,3074.8,0.55]
[1720512180290,2.06458638,3075.4,3074.8,0.55]
[1720512180502,2.04143776,3075.6,3074.8,0.55]
[1720512180783,2.04143776,3075.6,3074.5,6.50499]
[1720512180784,2.23468028,3075.5,3074.6,0.55]
[1720512181099,2.06454536,3075.4,3074.6,0.55]
[1720512181254,2.28801339,3075.3,3074.5,0.55]
[1720512181455,0.17013492,3075.5,3074.5,0.55]
[1720512181456,2.06454536,3075.2,3074.5,0.55]
[1720512181650,1.12674578,3075.1,3074.5,0.55]
[1720512181857,1.12674578,3075.3,3074.5,0.55]
[1720512182053,1.12674578,3075.2,3074.5,0.55]
[1720512182288,1.12674578,3075.4,3074.5,0.55]
[1720512182492,1.12674578,3075.3,3074.5,1.16987068]
[1720512182793,0.17013492,3075.5,3074.5,1.16987068]
[1720512182992,2.06444398,3075.4,3074.5,0.55]
[1720512183193,1.12677868,3075.3,3074.5,0.55]
[1720512183403,1.12677868,3075.2,3074.5,3.86755595]
[1720512183560,1.12677868,3075.5,3074.6,0.41403043]
[1720512183759,1.12677868,3075.4,3074.7,0.55]
[1720512183959,1.12677868,3075.3,3074.7,0.55]
[1720512184159,1.12677868,3075.2,3074.7,0.55]
[1720512184467,1.12677868,3075.1,3074.7,0.55]
[1720512184674,0.34059378,3075.6,3074.7,0.97815817]
[1720512185013,2.06445923,3075.5,3074.7,5.93041817]
[1720512185160,1.12677622,3075.4,3074.7,5.93041817]
[1720512185378,1.12677622,3075.3,3074.8,0.46286336]
[1720512185582,1.12677622,3075.2,3074.9,0.55]
[1720512185782,0.34059378,3075.6,3074.9,0.55]
[1720512185979,0.34059378,3075.6,3074.9,0.96403043]
[1720512186186,1.12670965,3075.5,3074.9,0.55]
[1720512186514,1.12671189,3075.4,3074.7,1.7]
[1720512186696,1.12671189,3075.3,3074.8,0.55]
[1720512186903,1.12671189,3075.5,3074.8,0.55]
[1720512187225,1.12678145,3075.4,3074.8,0.55]
[1720512187389,1.12678145,3075.3,3074.8,0.775]
[1720512187743,0.34059378,3075.6,3074.8,0.775]
[1720512187882,1.12672396,3075.5,3074.8,0.775]
[1720512188083,1.12672358,3075.4,3074.8,0.775]
[1720512188313,1.12672358,3075.3,3074.8,0.775]
[1720512188482,1.12672358,3075.5,3074.8,0.775]
[1720512188829,1.12672358,3075.5,3074.7,1.7]
[1720512188830,2.06439364,3075.4,3074.3,2.3816]
[1720512188980,1.12672358,3075.3,3074.4,0.95816]
[1720512189179,1.12678306,3075.2,3074.5,3.25248]
[1720512189383,0.34059378,3075.6,3074.6,2.25]
[1720512189578,1.12675858,3075.5,3074.6,2.25]
[1720512189821,1.12675858,3075.4,3074.7,0.550248]
[1720512190024,1.12675858,3075.4,3074.8,0.55]
[1720512190210,0.34059378,3075.6,3074.8,0.55]
[1720512190211,1.12675858,3075.3,3074.8,0.55]
[1720512190387,0.34059378,3075.6,3074.8,0.8300248]
[1720512190588,2.06456638,3075.5,3074.8,0.8300248]
[1720512190789,1.12675492,3075.4,3074.8,0.8300248]
[1720512191019,1.12675492,3075.5,3074.8,0.8300248]
[1720512191325,1.12675492,3075.4,3074.6,1.7]
[1720512191523,1.12675492,3075.5,3074.7,0.55]
[1720512191691,0.9378388,3075.4,3074.7,0.55]
[1720512191888,1.12675492,3075.3,3074.8,0.225]
[1720512192209,1.12675492,3075.3,3074.7,0.55]
[1720512192391,1.1268412,3075.2,3074.7,0.55]
[1720512192592,1.1268412,3075.1,3074.6,1.7]
[1720512192938,3.34059378,3075.6,3074.3,2.3816]
[1720512193096,5.5686855,3075.5,3074.4,0.55]
[1720512193303,4.50475044,3075.4,3074.4,0.55]
[1720512193602,5.06475044,3075.3,3074.3,0.55]
[1720512193906,2.06475044,3075.2,3074.3,0.55]
[1720512194138,2.06475044,3075.1,3074.3,0.55]
[1720512194350,2.06475044,3075.0,3074.3,0.55]
[1720512194631,2.06487431,3074.9,3074.3,0.55]
[1720512194814,2.27139352,3074.8,3073.9,2.3687]
[1720512194996,2.06490609,3074.7,3074.0,0.55]
[1720512195199,2.06497318,3074.6,3074.0,0.55]
[1720512195451,1.12685122,3074.6,3074.0,0.55]
[1720512195606,1.12709162,3074.5,3074.0,1.01187]
[1720512195805,4.70069778,3075.0,3074.0,0.55]
[1720512195806,0.34062011,3074.7,3074.0,0.55]
[1720512196060,2.06524374,3074.6,3073.8,1.7]
[1720512196348,2.06524374,3074.5,3073.8,1.7]
[1720512196561,2.06524374,3074.4,3073.8,1.7]
[1720512196706,2.06526902,3074.3,3073.8,1.7]
[1720512197017,2.06533944,3074.2,3073.8,1.7]
[1720512197222,2.0653703,3074.1,3073.8,1.7]
[1720512197405,3.0,3074.5,3073.8,1.87]
[1720512197608,2.06542553,3074.4,3073.8,1.7]
[1720512197809,2.06542553,3074.3,3073.8,1.7]
[1720512198029,2.06542553,3074.2,3073.8,1.7]
[1720512198267,2.06542553,3074.1,3073.8,1.7]
[1720512198475,3.0,3074.5,3073.8,1.87]
[1720512198634,2.06540904,3074.4,3073.8,1.87]
[1720512198836,1.12716971,3074.3,3073.8,1.7]
[1720512199032,3.0,3074.5,3073.5,2.3687]
[1720512199033,2.06538487,3074.2,3073.5,2.3687]
[1720512199261,2.06538487,3074.1,3073.6,0.55]
[1720512199431,2.06538487,3074.0,3073.6,1.01187]
[1720512199632,2.06538487,3073.9,3073.6,0.55]
[1720512199855,2.06538487,3073.8,3073.5,0.55]
[1720512200169,8.25747047,3074.8,3073.4,1.7]
[1720512200170,4.70247891,3074.1,3073.4,1.7]
[1720512200370,2.06567069,3074.0,3073.4,1.7]
[1720512200665,1.12731895,3073.9,3073.1,2.3686]
[1720512200869,0.93835174,3073.8,3073.2,0.95686]
[1720512201033,1.12731895,3073.7,3073.2,0.95686]
[1720512201236,0.93835174,3073.6,3073.2,0.95686]
[1720512201468,0.93835174,3073.6,3073.4,1.7]
[1720512201769,3.0,3073.9,3073.4,1.965686]
[1720512201944,1.12737083,3073.8,3073.4,1.965686]
[1720512202147,2.06576108,3073.7,3073.4,1.965686]
[1720512202329,0.93839025,3073.6,3073.4,1.965686]
[1720512202534,3.0,3073.9,3073.4,1.965686]
[1720512202735,2.06576507,3073.8,3073.4,1.965686]
[1720512203040,2.06576507,3073.7,3073.4,1.965686]
[1720512203351,0.93839202,3073.6,3073.4,1.7]
[1720512203561,3.0,3073.9,3073.4,1.7]
[1720512203764,2.06576536,3073.8,3073.4,1.7]
[1720512203937,2.06576536,3073.7,3073.4,1.7]
[1720512204145,1.70300042,3074.0,3073.4,1.965686]
[1720512204366,2.06572929,3073.9,3073.4,1.965686]
[1720512204563,2.06572929,3073.8,3073.4,1.965686]
[1720512204772,2.06572929,3073.7,3073.4,1.965686]
[1720512205073,3.0,3073.9,3073.4,1.965686]
[1720512205246,2.0657244,3073.8,3073.4,1.965686]
[1720512205450,2.0657244,3073.7,3073.4,1.965686]
[1720512205666,4.70236927,3074.0,3073.4,1.965686]
[1720512205873,2.06572663,3073.9,3073.4,1.965686]
[1720512206189,2.06572663,3073.8,3073.4,1.965686]
[1720512206472,2.06572412,3073.7,3073.4,1.7]
[1720512206691,3.0,3073.9,3073.4,1.7]
[1720512206885,2.06572191,3073.8,3073.4,1.7]
[1720512207063,2.06572191,3073.7,3073.4,1.7]
[1720512207383,3.0,3073.9,3073.4,1.7]
[1720512207531,2.06572418,3073.8,3073.4,1.7]
[1720512207736,2.06573495,3073.7,3073.4,1.7]
[1720512207986,1.70236927,3074.0,3073.2,0.55]
[1720512208301,2.06575813,3073.9,3073.2,0.55]
[1720512208601,2.06575813,3073.8,3073.2,0.55]
[1720512208895,0.93838882,3073.7,3073.2,0.55]
[1720512209251,1.70236927,3074.0,3073.2,0.55]
[1720512209252,3.0,3073.8,3073.2,0.55]
[1720512209459,0.93838353,3073.7,3073.2,0.55]
[1720512210155,4.70236927,3073.9,3073.2,0.55]
[1720512210156,0.93838353,3073.6,3073.2,0.55]
[1720512210456,4.70236927,3073.9,3073.2,0.55]
[1720512210656,5.06580132,3073.8,3073.2,0.55]
[1720512210958,2.06580132,3073.7,3073.2,0.55]
[1720512211276,0.9384098,3073.6,3073.2,0.55]
[1720512211478,3.3406071,3073.8,3073.2,0.55]
[1720512211690,3.0,3073.7,3073.2,0.55]
[1720512211857,0.93841,3073.6,3073.1,0.55]
[1720512212468,0.93841,3073.5,3073.1,0.55]
[1720512212663,3.84490474,3073.8,3073.1,0.55]
[1720512212868,2.0658077,3073.7,3073.1,0.55]
[1720512213089,2.0658077,3073.6,3073.1,0.55]
[1720512213295,3.0,3073.6,3073.1,0.55]
[1720512213903,3.84490474,3073.8,3073.1,0.55]
[1720512214059,2.06580872,3073.7,3073.1,0.55]
[1720512214256,2.06580872,3073.6,3073.1,0.55]
[1720512214562,3.3406071,3073.8,3073.1,0.55]
[1720512214757,2.06580975,3073.7,3073.1,0.55]
[1720512214960,2.06580868,3073.6,3073.1,0.55]
[1720512215191,3.0,3073.7,3073.1,0.55]
[1720512215497,2.06580792,3073.6,3073.1,0.55]
[1720512215671,3.0,3073.7,3073.1,0.55]
[1720512215876,2.0658098,3073.6,3073.1,0.55]
[1720512216190,3.3406071,3073.8,3073.1,0.775]
[1720512216500,2.0658115,3073.7,3073.1,0.775]
[1720512216673,2.0658115,3073.6,3073.1,0.775]
[1720512216997,3.3406071,3073.8,3073.1,0.775]
[1720512217166,5.06581163,3073.7,3073.1,0.775]
[1720512217362,2.06581163,3073.6,3073.1,0.775]
[1720512217661,1.12739682,3073.5,3073.1,0.775]
[1720512217887,1.12739682,3073.7,3072.5,1.7]
[1720512218098,1.12739682,3073.4,3072.5,1.7]
[1720512218368,3.76790686,3073.3,3072.5,1.7]
[1720512218598,5.06623828,3073.2,3072.5,1.7]
[1720512218808,2.06623828,3073.1,3072.5,1.7]
[1720512219008,2.06623828,3073.0,3072.2,2.3165]
[1720512219217,2.06623828,3072.9,3072.2,2.3165]